Workbook

Sheet Sheet1
A1: 惑星名 | B1: 位置関係(万km) | C1: 位置縮図(1/200) | D1: 直径(万km) | E1: 直径縮図(千km) | F1: 公転周期 | G1: 1ループの加算 | H1: ラジアン | I1: x | J1: y | K1: シェイプ名 | L1: 裏/表設定
A2: 太陽 | B2: 0 | C2: =B2/100 -> 0 | D2: 1392000 | E2: =D2/10000 -> 139.2 | F2: 0 | K2: 図1
A3: 水星 | B3: 5790 | C3: =B3/200 -> 28.95 | D3: 4880 | E3: =D3/1000 -> 4.88 | F3: 1 | G3: -12800 | H3: =RADIANS(G3) -> -223.4021443 | I3: =COS(H3) -> -0.9396926208 | J3: =SIN(H3) -> 0.3420201433 | K3: 図2 | L3: 裏
A4: 金星 | B4: 10820 | C4: =B4/200 -> 54.1 | D4: 12104 | E4: =D4/1000 -> 12.104 | F4: 2.554 | G4: -5011.74628 | H4: =RADIANS(G4) -> -87.47147387 | I4: =COS(H4) -> 0.8808600083 | J4: =SIN(H4) -> 0.4733768538 | K4: 図3 | L4: 表
A5: 地球 | B5: 14960 | C5: 74.8 | D5: 12756 | E5: =D5/1000 -> 12.756 | F5: 4.151 | G5: -3083.594315 | H5: -53.81887359 | I5: -0.9164024511 | J5: 0.4002581012 | K5: 図4 | L5: 表
A6: 火星 | B6: 22790 | C6: 113.95 | D6: 6794 | E6: =D6/1000 -> 6.794 | F6: 7.808 | G6: -1639.344262 | H6: -28.61195495 | I6: -0.9435453401 | J6: 0.3312434018 | K6: 図5 | L6: 表
A7: 木星 | B7: 77830 | C7: 389.15 | D7: 142984 | E7: =D7/2000 -> 71.492 | F7: 49.24 | G7: -259.9512591 | H7: -4.537005367 | I7: -0.1744858794 | J7: 0.9846596762 | K7: 図6 | L7: 表
A8: 土星 | B8: 142940 | C8: =B8/200 -> 714.7 | D8: 120536 | E8: =D8/2000 -> 60.268 | F8: 122.283 | G8: -104.6752206 | H8: -1.826927245 | I8: -0.2533395948 | J8: -0.9673774081 | K8: 図7 | L8: 裏
A9: 天王星 | B9: 287500 | C9: =B9/300 -> 958.3333333 | D9: 51118 | E9: =D9/1000 -> 51.118 | F9: 348.784 | G9: -36.69893114 | H9: -0.6405171804 | I9: 0.8017867928 | J9: -0.5976101897 | K9: 図8 | L9: 裏
A10: 海王星 | B10: 450440 | C10: =B10/400 -> 1126.1 | D10: 49528 | E10: =D10/1000 -> 49.528 | F10: 683.993 | G10: -18.71364181 | H10: -0.3266146646 | I10: =COS(H10) -> 0.9471339147 | J10: =SIN(H10) -> -0.320838507 | K10: 図9 | L10: 表
